{"text_format":"3","workbook":"xlsx","n_sheets":1,"sheets":["Інвентарний список"],"not_rendered":{"images":1,"defined_names":3},"read":"whole","date_system":"1900"}

{"sheet":"Інвентарний список","index":0,"n_rows":28,"n_cols":13,"rows_kept":28}
[{"$nulls":12}," "]
[{"$nulls":10},"Виділяти товари, запаси яких слід поповнити?","Так"]
[null,"Для нижньої межі","Ідентифікатор товару","Назва","Опис","Ціна за одиницю","Кількість на складі","Вартість запасів","Нижня межа поповнення","Інтервал поповнення в днях","Кількість для поповнення","Вилучено?"]
[null,{"$f":"IFERROR((Таблиця_Інвентарного_Списку[[#This Row],[Кількість на складі]]<=Таблиця_Інвентарного_Списку[[#This Row],[Нижня межа поповнення]])*(Таблиця_Інвентарного_Списку[[#This Row],[Вилучено?]]=\"\")*valHighlight,0)","v":1},"IN0001","Товар 1","Опис 1",{"v":51,"d":"51.00₴"},25,{"$f":"Таблиця_Інвентарного_Списку[[#This Row],[Ціна за одиницю]]*Таблиця_Інвентарного_Списку[[#This Row],[Кількість на складі]]","v":{"v":1275,"d":"1,275.00₴"}},29,13,50]
[null,{"$f":"IFERROR((Таблиця_Інвентарного_Списку[[#This Row],[Кількість на складі]]<=Таблиця_Інвентарного_Списку[[#This Row],[Нижня межа поповнення]])*(Таблиця_Інвентарного_Списку[[#This Row],[Вилучено?]]=\"\")*valHighlight,0)","v":1},"IN0002","Пункт 2","Опис 2",{"v":93,"d":"93.00₴"},132,{"$f":"Таблиця_Інвентарного_Списку[[#This Row],[Ціна за одиницю]]*Таблиця_Інвентарного_Списку[[#This Row],[Кількість на складі]]","v":{"v":12276,"d":"12,276.00₴"}},231,4,50]
[null,{"$f":"IFERROR((Таблиця_Інвентарного_Списку[[#This Row],[Кількість на складі]]<=Таблиця_Інвентарного_Списку[[#This Row],[Нижня межа поповнення]])*(Таблиця_Інвентарного_Списку[[#This Row],[Вилучено?]]=\"\")*valHighlight,0)","v":0},"IN0003","Товар 3","Опис 3",{"v":57,"d":"57.00₴"},151,{"$f":"Таблиця_Інвентарного_Списку[[#This Row],[Ціна за одиницю]]*Таблиця_Інвентарного_Списку[[#This Row],[Кількість на складі]]","v":{"v":8607,"d":"8,607.00₴"}},114,11,150]
[null,{"$f":"IFERROR((Таблиця_Інвентарного_Списку[[#This Row],[Кількість на складі]]<=Таблиця_Інвентарного_Списку[[#This Row],[Нижня межа поповнення]])*(Таблиця_Інвентарного_Списку[[#This Row],[Вилучено?]]=\"\")*valHighlight,0)","v":0},"IN0004","Товар 4","Опис 4",{"v":19,"d":"19.00₴"},186,{"$f":"Таблиця_Інвентарного_Списку[[#This Row],[Ціна за одиницю]]*Таблиця_Інвентарного_Списку[[#This Row],[Кількість на складі]]","v":{"v":3534,"d":"3,534.00₴"}},158,6,50]
[null,{"$f":"IFERROR((Таблиця_Інвентарного_Списку[[#This Row],[Кількість на складі]]<=Таблиця_Інвентарного_Списку[[#This Row],[Нижня межа поповнення]])*(Таблиця_Інвентарного_Списку[[#This Row],[Вилучено?]]=\"\")*valHighlight,0)","v":0},"IN0005","Товар 5","Опис 5",{"v":75,"d":"75.00₴"},62,{"$f":"Таблиця_Інвентарного_Списку[[#This Row],[Ціна за одиницю]]*Таблиця_Інвентарного_Списку[[#This Row],[Кількість на складі]]","v":{"v":4650,"d":"4,650.00₴"}},39,12,50]
[null,{"$f":"IFERROR((Таблиця_Інвентарного_Списку[[#This Row],[Кількість на складі]]<=Таблиця_Інвентарного_Списку[[#This Row],[Нижня межа поповнення]])*(Таблиця_Інвентарного_Списку[[#This Row],[Вилучено?]]=\"\")*valHighlight,0)","v":1},"IN0006","Товар 6","Опис 6",{"v":11,"d":"11.00₴"},5,{"$f":"Таблиця_Інвентарного_Списку[[#This Row],[Ціна за одиницю]]*Таблиця_Інвентарного_Списку[[#This Row],[Кількість на складі]]","v":{"v":55,"d":"55.00₴"}},9,13,150]
[null,{"$f":"IFERROR((Таблиця_Інвентарного_Списку[[#This Row],[Кількість на складі]]<=Таблиця_Інвентарного_Списку[[#This Row],[Нижня межа поповнення]])*(Таблиця_Інвентарного_Списку[[#This Row],[Вилучено?]]=\"\")*valHighlight,0)","v":0},"IN0007","Товар 7","Опис 7",{"v":56,"d":"56.00₴"},58,{"$f":"Таблиця_Інвентарного_Списку[[#This Row],[Ціна за одиницю]]*Таблиця_Інвентарного_Списку[[#This Row],[Кількість на складі]]","v":{"v":3248,"d":"3,248.00₴"}},109,7,100,"Так"]
[null,{"$f":"IFERROR((Таблиця_Інвентарного_Списку[[#This Row],[Кількість на складі]]<=Таблиця_Інвентарного_Списку[[#This Row],[Нижня межа поповнення]])*(Таблиця_Інвентарного_Списку[[#This Row],[Вилучено?]]=\"\")*valHighlight,0)","v":1},"IN0008","Товар 8","Опис 8",{"v":38,"d":"38.00₴"},101,{"$f":"Таблиця_Інвентарного_Списку[[#This Row],[Ціна за одиницю]]*Таблиця_Інвентарного_Списку[[#This Row],[Кількість на складі]]","v":{"v":3838,"d":"3,838.00₴"}},162,3,100]
[null,{"$f":"IFERROR((Таблиця_Інвентарного_Списку[[#This Row],[Кількість на складі]]<=Таблиця_Інвентарного_Списку[[#This Row],[Нижня межа поповнення]])*(Таблиця_Інвентарного_Списку[[#This Row],[Вилучено?]]=\"\")*valHighlight,0)","v":0},"IN0009","Товар 9","Опис 9",{"v":59,"d":"59.00₴"},122,{"$f":"Таблиця_Інвентарного_Списку[[#This Row],[Ціна за одиницю]]*Таблиця_Інвентарного_Списку[[#This Row],[Кількість на складі]]","v":{"v":7198,"d":"7,198.00₴"}},82,3,150]
[null,{"$f":"IFERROR((Таблиця_Інвентарного_Списку[[#This Row],[Кількість на складі]]<=Таблиця_Інвентарного_Списку[[#This Row],[Нижня межа поповнення]])*(Таблиця_Інвентарного_Списку[[#This Row],[Вилучено?]]=\"\")*valHighlight,0)","v":1},"IN0010","Товар 10","Опис 10",{"v":50,"d":"50.00₴"},175,{"$f":"Таблиця_Інвентарного_Списку[[#This Row],[Ціна за одиницю]]*Таблиця_Інвентарного_Списку[[#This Row],[Кількість на складі]]","v":{"v":8750,"d":"8,750.00₴"}},283,8,150]
[null,{"$f":"IFERROR((Таблиця_Інвентарного_Списку[[#This Row],[Кількість на складі]]<=Таблиця_Інвентарного_Списку[[#This Row],[Нижня межа поповнення]])*(Таблиця_Інвентарного_Списку[[#This Row],[Вилучено?]]=\"\")*valHighlight,0)","v":1},"IN0011","Товар 11","Опис 11",{"v":59,"d":"59.00₴"},176,{"$f":"Таблиця_Інвентарного_Списку[[#This Row],[Ціна за одиницю]]*Таблиця_Інвентарного_Списку[[#This Row],[Кількість на складі]]","v":{"v":10384,"d":"10,384.00₴"}},229,1,100]
[null,{"$f":"IFERROR((Таблиця_Інвентарного_Списку[[#This Row],[Кількість на складі]]<=Таблиця_Інвентарного_Списку[[#This Row],[Нижня межа поповнення]])*(Таблиця_Інвентарного_Списку[[#This Row],[Вилучено?]]=\"\")*valHighlight,0)","v":1},"IN0012","Товар 12","Опис 12",{"v":18,"d":"18.00₴"},22,{"$f":"Таблиця_Інвентарного_Списку[[#This Row],[Ціна за одиницю]]*Таблиця_Інвентарного_Списку[[#This Row],[Кількість на складі]]","v":{"v":396,"d":"396.00₴"}},36,12,50]
[null,{"$f":"IFERROR((Таблиця_Інвентарного_Списку[[#This Row],[Кількість на складі]]<=Таблиця_Інвентарного_Списку[[#This Row],[Нижня межа поповнення]])*(Таблиця_Інвентарного_Списку[[#This Row],[Вилучено?]]=\"\")*valHighlight,0)","v":1},"IN0013","Товар 13","Опис 13",{"v":26,"d":"26.00₴"},72,{"$f":"Таблиця_Інвентарного_Списку[[#This Row],[Ціна за одиницю]]*Таблиця_Інвентарного_Списку[[#This Row],[Кількість на складі]]","v":{"v":1872,"d":"1,872.00₴"}},102,9,100]
[null,{"$f":"IFERROR((Таблиця_Інвентарного_Списку[[#This Row],[Кількість на складі]]<=Таблиця_Інвентарного_Списку[[#This Row],[Нижня межа поповнення]])*(Таблиця_Інвентарного_Списку[[#This Row],[Вилучено?]]=\"\")*valHighlight,0)","v":1},"IN0014","Товар 14","Опис 14",{"v":42,"d":"42.00₴"},62,{"$f":"Таблиця_Інвентарного_Списку[[#This Row],[Ціна за одиницю]]*Таблиця_Інвентарного_Списку[[#This Row],[Кількість на складі]]","v":{"v":2604,"d":"2,604.00₴"}},83,2,100]
[null,{"$f":"IFERROR((Таблиця_Інвентарного_Списку[[#This Row],[Кількість на складі]]<=Таблиця_Інвентарного_Списку[[#This Row],[Нижня межа поповнення]])*(Таблиця_Інвентарного_Списку[[#This Row],[Вилучено?]]=\"\")*valHighlight,0)","v":0},"IN0015","Товар 15","Опис 15",{"v":32,"d":"32.00₴"},46,{"$f":"Таблиця_Інвентарного_Списку[[#This Row],[Ціна за одиницю]]*Таблиця_Інвентарного_Списку[[#This Row],[Кількість на складі]]","v":{"v":1472,"d":"1,472.00₴"}},23,15,50]
[null,{"$f":"IFERROR((Таблиця_Інвентарного_Списку[[#This Row],[Кількість на складі]]<=Таблиця_Інвентарного_Списку[[#This Row],[Нижня межа поповнення]])*(Таблиця_Інвентарного_Списку[[#This Row],[Вилучено?]]=\"\")*valHighlight,0)","v":1},"IN0016","Товар 16","Опис 16",{"v":90,"d":"90.00₴"},96,{"$f":"Таблиця_Інвентарного_Списку[[#This Row],[Ціна за одиницю]]*Таблиця_Інвентарного_Списку[[#This Row],[Кількість на складі]]","v":{"v":8640,"d":"8,640.00₴"}},180,3,50]
[null,{"$f":"IFERROR((Таблиця_Інвентарного_Списку[[#This Row],[Кількість на складі]]<=Таблиця_Інвентарного_Списку[[#This Row],[Нижня межа поповнення]])*(Таблиця_Інвентарного_Списку[[#This Row],[Вилучено?]]=\"\")*valHighlight,0)","v":0},"IN0017","Товар 17","Опис 17",{"v":97,"d":"97.00₴"},57,{"$f":"Таблиця_Інвентарного_Списку[[#This Row],[Ціна за одиницю]]*Таблиця_Інвентарного_Списку[[#This Row],[Кількість на складі]]","v":{"v":5529,"d":"5,529.00₴"}},98,12,50,"Так"]
[null,{"$f":"IFERROR((Таблиця_Інвентарного_Списку[[#This Row],[Кількість на складі]]<=Таблиця_Інвентарного_Списку[[#This Row],[Нижня межа поповнення]])*(Таблиця_Інвентарного_Списку[[#This Row],[Вилучено?]]=\"\")*valHighlight,0)","v":1},"IN0018","Товар 18","Опис 18",{"v":12,"d":"12.00₴"},6,{"$f":"Таблиця_Інвентарного_Списку[[#This Row],[Ціна за одиницю]]*Таблиця_Інвентарного_Списку[[#This Row],[Кількість на складі]]","v":{"v":72,"d":"72.00₴"}},7,13,50]
[null,{"$f":"IFERROR((Таблиця_Інвентарного_Списку[[#This Row],[Кількість на складі]]<=Таблиця_Інвентарного_Списку[[#This Row],[Нижня межа поповнення]])*(Таблиця_Інвентарного_Списку[[#This Row],[Вилучено?]]=\"\")*valHighlight,0)","v":1},"IN0019","Товар 19","Опис 19",{"v":82,"d":"82.00₴"},143,{"$f":"Таблиця_Інвентарного_Списку[[#This Row],[Ціна за одиницю]]*Таблиця_Інвентарного_Списку[[#This Row],[Кількість на складі]]","v":{"v":11726,"d":"11,726.00₴"}},164,12,150]
[null,{"$f":"IFERROR((Таблиця_Інвентарного_Списку[[#This Row],[Кількість на складі]]<=Таблиця_Інвентарного_Списку[[#This Row],[Нижня межа поповнення]])*(Таблиця_Інвентарного_Списку[[#This Row],[Вилучено?]]=\"\")*valHighlight,0)","v":0},"IN0020","Товар 20","Опис 20",{"v":16,"d":"16.00₴"},124,{"$f":"Таблиця_Інвентарного_Списку[[#This Row],[Ціна за одиницю]]*Таблиця_Інвентарного_Списку[[#This Row],[Кількість на складі]]","v":{"v":1984,"d":"1,984.00₴"}},113,14,50]
[null,{"$f":"IFERROR((Таблиця_Інвентарного_Списку[[#This Row],[Кількість на складі]]<=Таблиця_Інвентарного_Списку[[#This Row],[Нижня межа поповнення]])*(Таблиця_Інвентарного_Списку[[#This Row],[Вилучено?]]=\"\")*valHighlight,0)","v":0},"IN0021","Товар 21","Опис 21",{"v":19,"d":"19.00₴"},112,{"$f":"Таблиця_Інвентарного_Списку[[#This Row],[Ціна за одиницю]]*Таблиця_Інвентарного_Списку[[#This Row],[Кількість на складі]]","v":{"v":2128,"d":"2,128.00₴"}},75,11,50]
[null,{"$f":"IFERROR((Таблиця_Інвентарного_Списку[[#This Row],[Кількість на складі]]<=Таблиця_Інвентарного_Списку[[#This Row],[Нижня межа поповнення]])*(Таблиця_Інвентарного_Списку[[#This Row],[Вилучено?]]=\"\")*valHighlight,0)","v":0},"IN0022","Товар 22","Опис 22",{"v":24,"d":"24.00₴"},182,{"$f":"Таблиця_Інвентарного_Списку[[#This Row],[Ціна за одиницю]]*Таблиця_Інвентарного_Списку[[#This Row],[Кількість на складі]]","v":{"v":4368,"d":"4,368.00₴"}},132,15,150]
[null,{"$f":"IFERROR((Таблиця_Інвентарного_Списку[[#This Row],[Кількість на складі]]<=Таблиця_Інвентарного_Списку[[#This Row],[Нижня межа поповнення]])*(Таблиця_Інвентарного_Списку[[#This Row],[Вилучено?]]=\"\")*valHighlight,0)","v":0},"IN0023","Товар 23","Опис 23",{"v":29,"d":"29.00₴"},106,{"$f":"Таблиця_Інвентарного_Списку[[#This Row],[Ціна за одиницю]]*Таблиця_Інвентарного_Списку[[#This Row],[Кількість на складі]]","v":{"v":3074,"d":"3,074.00₴"}},142,1,150,"Так"]
[null,{"$f":"IFERROR((Таблиця_Інвентарного_Списку[[#This Row],[Кількість на складі]]<=Таблиця_Інвентарного_Списку[[#This Row],[Нижня межа поповнення]])*(Таблиця_Інвентарного_Списку[[#This Row],[Вилучено?]]=\"\")*valHighlight,0)","v":0},"IN0024","Товар 24","Опис 24",{"v":75,"d":"75.00₴"},173,{"$f":"Таблиця_Інвентарного_Списку[[#This Row],[Ціна за одиницю]]*Таблиця_Інвентарного_Списку[[#This Row],[Кількість на складі]]","v":{"v":12975,"d":"12,975.00₴"}},127,9,100]
[null,{"$f":"IFERROR((Таблиця_Інвентарного_Списку[[#This Row],[Кількість на складі]]<=Таблиця_Інвентарного_Списку[[#This Row],[Нижня межа поповнення]])*(Таблиця_Інвентарного_Списку[[#This Row],[Вилучено?]]=\"\")*valHighlight,0)","v":0},"IN0025","Товар 25","Опис 25",{"v":14,"d":"14.00₴"},28,{"$f":"Таблиця_Інвентарного_Списку[[#This Row],[Ціна за одиницю]]*Таблиця_Інвентарного_Списку[[#This Row],[Кількість на складі]]","v":{"v":392,"d":"392.00₴"}},21,8,50]